bitfinex/quotes_ETHUSD_20260121
["timestamp","ask_amount","ask_price","bid_price","bid_amount"]
[1769018135349,1.0324653,2905.5,2903.8,7.76766695]
[1769018135554,1.0324653,2905.5,2902.8,3.52118945]
[1769018135555,8.2819893,2905.5,2903.3,7.69134299]
[1769018135757,8.2819893,2905.5,2903.3,11.13559372]
[1769018135922,8.2819893,2905.5,2903.6,0.002]
[1769018136355,0.001,2905.4,2903.6,0.002]
[1769018137148,17.57547999,2905.3,2903.6,0.002]
[1769018137824,17.57547999,2905.3,2903.9,7.76766695]
[1769018137825,3.44198533,2905.3,2903.9,7.76766695]
[1769018138225,6.88397066,2905.3,2903.9,7.76766695]
[1769018138453,7.57246773,2905.3,2903.9,7.76766695]
[1769018139026,7.57246773,2905.3,2903.7,3.84]
[1769018139228,21.70596239,2905.3,2903.7,3.84]
[1769018139429,18.26397706,2905.3,2903.7,3.84]
[1769018139755,7.57246773,2905.3,2903.8,0.07632396]
[1769018139941,7.57246773,2905.3,2904.0,7.69134299]
[1769018140967,4.1304824,2905.3,2904.0,7.69134299]
[1769018141130,0.001,2905.4,2904.2,7.69134299]
[1769018141329,0.001,2905.4,2904.3,7.69134299]
[1769018141524,3.44287833,2905.4,2904.3,7.69134299]
[1769018141730,3.44287833,2905.4,2904.2,3.84]
[1769018141731,6.88475666,2905.4,2904.2,3.84]
[1769018141931,0.001,2905.4,2904.2,3.84]
[1769018142138,0.001,2905.4,2904.3,7.76766695]
[1769018142573,3.44208443,2906.1,2904.8,7.69134299]
[1769018142574,0.001,2906.1,2904.8,7.69134299]
[1769018142733,0.001,2906.1,2904.9,0.07632396]
[1769018142734,3.44206719,2906.1,2904.9,0.07632396]
[1769018142934,3.44206719,2906.1,2904.9,11.60766695]
[1769018143167,0.001,2906.1,2904.9,11.53134299]
[1769018143383,7.249524,2905.7,2903.6,0.002]
[1769018143879,7.249524,2905.5,2903.6,0.002]
[1769018145158,10.32631143,2905.2,2903.6,0.002]
[1769018146170,6.88420762,2905.2,2903.6,0.002]
[1769018146374,0.68842076,2905.1,2903.6,0.002]
[1769018147446,10.32702237,2905.0,2903.6,0.002]
[1769018150052,6.88468158,2905.0,2903.6,0.002]
[1769018150240,10.32702237,2905.0,2903.6,0.002]
[1769018152079,3.44234079,2905.0,2903.7,7.62001494]
[1769018152379,3.85541695,2905.0,2903.7,7.62001494]
[1769018152575,0.001,2905.4,2904.1,7.62001494]
[1769018153132,6.88475734,2905.4,2904.1,7.62001494]
[1769018153335,6.88475734,2905.4,2903.8,0.07632396]
[1769018153569,6.88475734,2905.4,2903.6,7.6983389]
[1769018153733,1.02353243,2905.3,2903.7,7.62001494]
[1769018153931,3.44210381,2905.2,2903.9,7.62001494]
[1769018154167,4.46556348,2905.3,2903.9,7.62001494]
[1769018154665,1.02353243,2905.3,2903.9,7.62001494]
[1769018154980,4.4655323,2905.3,2903.9,7.62001494]
[1769018155142,0.001,2905.4,2904.0,7.6963389]
[1769018156241,0.001,2905.4,2904.2,7.6963389]
[1769018156564,3.44212405,2906.1,2904.6,7.6963389]
[1769018156763,0.001,2906.1,2904.8,7.62001494]
[1769018157066,0.001,2906.1,2904.8,7.6963389]
[1769018157440,3.44208109,2906.1,2904.7,4.409]
[1769018157668,6.88316218,2906.1,2904.7,3.84]
[1769018158054,10.32424327,2906.1,2904.7,3.84]
[1769018158347,10.32424327,2906.1,2904.0,3.51979035]
[1769018158348,8.96841777,2906.0,2904.0,3.84]
[1769018158534,7.21453949,2906.0,2904.1,3.84]
[1769018160143,10.32382392,2905.9,2904.1,3.84]
[1769018160864,10.32382392,2905.9,2903.9,3.44359616]
[1769018160865,7.45640217,2905.8,2904.2,3.84]
[1769018161682,7.45640217,2905.8,2903.8,7.62201494]
[1769018161683,7.45640217,2905.6,2903.8,0.002]
[1769018161876,7.45640217,2905.4,2903.8,0.002]
[1769018162391,10.32595599,2905.3,2903.8,0.002]
[1769018162758,6.88397066,2905.3,2903.8,7.19363305]
[1769018162950,6.88397066,2905.3,2903.9,7.26795701]
[1769018162951,3.44198533,2905.3,2903.9,7.26795701]
[1769018163153,3.44198533,2905.3,2904.0,7.19163305]
[1769018163384,6.88278614,2905.8,2904.1,0.07632396]
[1769018163550,6.88278614,2905.8,2904.2,7.19163305]
[1769018163753,0.001,2905.9,2904.6,7.19163305]
[1769018163952,3.44228047,2905.9,2904.6,7.19163305]
[1769018164390,6.88356094,2905.9,2904.6,7.19163305]
[1769018164750,6.88356094,2905.9,2903.8,0.002]
[1769018164751,7.45640217,2905.8,2903.8,0.002]
[1769018165020,7.45640217,2905.4,2903.8,0.002]
[1769018165196,7.45640217,2905.2,2903.8,0.002]
[1769018165687,7.45640217,2905.6,2903.8,0.002]
[1769018166387,7.45640217,2905.2,2903.8,0.002]
[1769018166695,6.88397066,2905.3,2903.8,0.002]
[1769018166894,0.68839707,2905.2,2903.8,0.002]
[1769018167054,8.14479924,2905.2,2903.8,0.002]
[1769018167794,0.68839707,2905.2,2903.8,0.002]
[1769018167977,0.68839707,2905.2,2903.8,7.19363305]
[1769018168178,6.88397066,2905.3,2903.8,7.19363305]
[1769018168565,3.44119425,2906.0,2904.2,7.19163305]
[1769018168566,6.88278614,2905.8,2904.2,7.19163305]
[1769018171120,0.001,2906.1,2904.2,7.19163305]
[1769018171121,17.78122609,2905.9,2904.2,7.19163305]
[1769018171280,7.45640217,2905.8,2904.2,7.19163305]
[1769018171477,1.77812261,2905.7,2904.2,7.19163305]
[1769018172804,1.77812261,2905.7,2903.8,7.19363305]
[1769018172805,9.23452478,2905.7,2903.8,7.19363305]
[1769018173099,7.45640217,2905.5,2903.8,0.002]
[1769018173706,8.02540217,2905.5,2903.8,0.002]
[1769018173866,2.1791922,2905.4,2903.8,0.002]
[1769018174062,7.45640217,2905.3,2903.8,0.002]
[1769018174893,6.88420762,2905.2,2903.8,0.002]
[1769018175306,6.88420762,2905.2,2903.8,7.19363305]
[1769018175478,6.88420762,2905.2,2904.0,0.002]
[1769018175674,0.68842076,2905.1,2904.0,0.002]
[1769018176323,7.84245502,2905.1,2904.0,0.002]
[1769018177405,17.48105663,2905.0,2904.0,0.002]
[1769018177608,7.15403426,2904.9,2904.0,0.002]
[1769018179133,7.15403426,2904.9,2903.8,1e-08]
[1769018179286,7.15403426,2904.9,2902.8,7.53463318]
[1769018179287,7.15403426,2904.5,2902.4,7.53463318]
[1769018179475,17.21348155,2904.7,2902.2,0.002]
[1769018179476,17.15403426,2904.2,2902.2,0.002]
[1769018179680,7.15403426,2904.1,2902.2,0.002]
[1769018179920,17.21348155,2904.7,2902.6,7.53663318]
[1769018179921,7.72303426,2904.5,2902.6,7.53663318]
[1769018180129,7.72303426,2904.5,2902.8,7.53463318]
[1769018180130,0.77230343,2904.4,2902.8,7.53463318]
[1769018180582,7.15403426,2904.6,2902.6,0.002]
[1769018180980,7.15403426,2904.6,2902.6,7.53663318]
[1769018181182,7.15403426,2904.6,2902.8,7.53463318]
[1769018181579,2.09233974,2904.8,2902.8,7.53463318]
[1769018181580,6.88586674,2904.5,2902.8,7.53463318]
[1769018181780,0.68858667,2904.4,2903.0,7.53463318]
[1769018182226,7.84262093,2904.4,2902.6,0.002]
[1769018183805,10.32951141,2904.3,2902.6,0.002]
[1769018184187,7.15403426,2904.2,2902.6,0.002]
[1769018184394,7.15403426,2904.1,2902.6,0.002]
[1769018184590,7.15403426,2903.9,2902.6,0.002]
[1769018185608,7.72303426,2903.9,2902.6,0.002]
[1769018185912,10.33129002,2903.8,2902.6,0.002]
[1769018187513,7.15403426,2903.7,2902.6,0.002]
[1769018188013,10.33200165,2903.6,2902.6,0.002]
[1769018188313,10.33200165,2903.6,2902.2,0.002]
[1769018188314,8.90263785,2903.5,2902.2,0.002]
[1769018188990,7.15403426,2903.1,2902.0,1e-08]
[1769018189324,7.15403426,2902.6,2900.6,0.002]
[1769018189502,7.15403426,2902.5,2900.6,7.53663318]
[1769018189695,0.569,2902.4,2900.6,7.53663318]
[1769018189891,10.33662954,2902.3,2900.6,7.53663318]
[1769018190284,10.90562954,2902.3,2900.6,7.53663318]
[1769018190489,1.09056295,2902.2,2900.6,7.53663318]
[1769018191321,3.44546373,2902.4,2901.1,7.53463318]
[1769018191511,3.44447506,2903.2,2901.3,7.53463318]
[1769018191811,0.57,2903.1,2901.3,7.53463318]
[1769018192013,7.29087223,2903.0,2901.3,7.53463318]
[1769018192524,7.29087223,2903.0,2901.2,3.52316395]
[1769018192525,0.40144751,2903.0,2901.6,7.53463318]
[1769018192818,0.40144751,2903.0,2901.1,10.98152769]
[1769018193517,7.55548177,2903.0,2900.7,7.53463318]
[1769018193692,8.22755809,2902.9,2900.7,7.53463318]
[1769018194016,7.15403426,2902.7,2900.7,10.98196214]
[1769018194513,6.8898994,2902.8,2901.1,7.53463318]
[1769018194719,6.8898994,2902.8,2900.8,7.61095714]
[1769018194888,0.79634232,2902.7,2900.8,7.61095714]
[1769018195982,6.89037414,2902.6,2900.9,3.44720603]
[1769018196188,10.33556121,2902.6,2900.8,7.53463318]
[1769018196522,10.33556121,2902.6,2900.8,10.98194253]
[1769018196827,1.11319035,2902.5,2900.8,10.98194303]
[1769018197025,1.11319035,2902.5,2900.9,7.53463318]
[1769018197944,1.11319035,2902.5,2901.1,6.89393678]
[1769018198091,4.24144961,2902.7,2901.2,7.53463318]
[1769018198289,4.24144961,2902.7,2901.2,7.61095714]
[1769018199047,7.68660563,2902.7,2901.2,7.61095714]
[1769018199322,7.68660563,2902.7,2901.2,7.53463318]
[1769018199827,4.24144961,2902.7,2901.2,7.53463318]
[1769018200119,7.29099163,2903.0,2901.5,7.53463318]
[1769018200491,10.73576369,2903.0,2901.2,0.07632396]
[1769018200700,7.29099163,2903.0,2901.3,10.98134956]
[1769018201012,7.29099163,2903.0,2901.3,7.53463318]
[1769018201013,10.73576369,2903.0,2901.3,7.53463318]
[1769018201212,0.001,2902.5,2901.3,7.53463318]
[1769018201914,0.001,2902.5,2901.3,10.98134074]
[1769018202120,3.44426824,2903.4,2901.7,7.61095714]
[1769018202309,3.44372305,2903.9,2902.0,7.61095714]
[1769018202714,3.44376334,2903.8,2902.0,7.61095714]
[1769018202916,3.44376334,2903.8,2902.0,7.53463318]
[1769018203122,10.33116915,2903.9,2902.0,7.53463318]
[1769018203123,1.37749325,2903.7,2902.0,7.53463318]
[1769018203994,6.8880011,2903.6,2902.0,7.53463318]
[1769018204197,10.33200165,2903.6,2902.0,7.53463318]
[1769018205924,6.8880011,2903.6,2902.0,7.53463318]
[1769018206535,6.8880011,2903.6,2902.1,7.12189085]
[1769018206852,3.44400055,2903.6,2902.2,7.22050308]
[1769018207056,3.44400055,2903.6,2902.2,7.19821481]
[1769018207354,3.44352617,2904.0,2902.5,7.12189085]
[1769018207648,3.44352617,2904.0,2902.4,0.07632396]
[1769018207649,3.44438697,2904.2,2902.7,7.12189085]
[1769018207860,6.88777394,2904.2,2902.9,7.12189085]
[1769018208018,10.33116091,2904.2,2902.4,7.19821481]
[1769018208222,0.001,2904.2,2902.4,10.64352625]
[1769018208423,0.001,2904.2,2902.4,6.96705987]
[1769018208618,1.03401558,2904.2,2902.5,7.12189085]
[1769018208824,1.03401558,2904.2,2902.0,7.12189085]
[1769018208825,7.78522053,2904.2,2902.0,7.12189085]
[1769018209454,7.78522053,2904.2,2902.0,10.56773147]
[1769018209655,8.19815268,2904.2,2902.1,3.44578044]
[1769018209853,8.19815268,2904.2,2902.0,7.12189085]
[1769018210057,6.75120495,2904.0,2902.0,7.12189085]
[1769018210436,10.33093425,2903.9,2902.0,7.12189085]
[1769018210632,6.75120495,2903.8,2902.0,7.12189085]
[1769018210857,6.75120495,2903.8,2902.0,10.56776753]
[1769018211169,6.8872895,2903.9,2902.2,0.07632396]
[1769018211374,7.78429137,2903.8,2901.9,7.12189085]
[1769018212064,8.35429137,2903.8,2901.9,7.12189085]
[1769018212566,6.75120495,2903.6,2901.9,7.12189085]
[1769018212766,6.75120495,2903.5,2901.5,7.12189085]
[1769018212937,8.42632545,2903.4,2901.5,7.12189085]
[1769018213138,6.75120495,2903.4,2901.5,7.12189085]
[1769018213671,6.75120495,2903.0,2901.0,0.002]
[1769018213889,6.75120495,2901.7,2900.2,0.002]
[1769018214068,16.75120495,2901.5,2900.2,0.002]
[1769018214270,2.3021205,2901.4,2900.2,0.002]
[1769018214568,6.89369914,2901.2,2900.2,0.002]
[1769018214773,6.75120495,2901.1,2899.0,7.12389085]
[1769018214975,6.75120495,2900.9,2899.0,0.002]
[1769018215180,6.75120495,2900.7,2899.0,0.002]
[1769018215478,0.6751205,2900.6,2899.0,0.002]
[1769018215840,0.6751205,2900.6,2899.0,3.45142394]
[1769018216072,0.57,2900.8,2899.0,0.002]
[1769018216273,0.57,2900.8,2899.0,3.45139117]
[1769018216567,6.89488744,2900.7,2899.0,3.45146533]
[1769018217466,0.57,2900.9,2899.3,7.12189085]
[1769018217885,0.57,2900.9,2899.2,0.002]
[1769018218849,6.89464974,2900.8,2899.2,0.002]
[1769018219056,1.09119087,2900.7,2899.2,0.002]
[1769018219779,0.57,2901.3,2899.2,7.00555884]
[1769018220483,6.89179874,2902.0,2899.9,7.00355884]
[1769018220675,10.33769811,2902.0,2899.9,6.92723488]
[1769018220875,36.72022815,2901.9,2899.9,6.92723488]
[1769018221054,6.72022815,2901.7,2899.4,0.07632396]
[1769018221397,6.72022815,2901.7,2899.6,3.45068675]
[1769018221681,6.72022815,2901.5,2899.6,0.002]
[1769018222380,6.72022815,2901.3,2899.6,0.002]
[1769018222559,0.57,2901.4,2899.6,10.37797772]
[1769018222888,10.11138063,2901.8,2899.8,6.92723488]
[1769018222889,6.89274882,2901.6,2899.8,6.92723488]
[1769018223052,6.89274882,2901.6,2899.8,7.00355884]
[1769018223260,10.33912323,2901.6,2899.8,7.00355884]
[1769018223462,10.33912323,2901.6,2899.8,6.92723488]
[1769018223785,6.89274882,2901.6,2899.9,0.07632396]
[1769018223986,0.68927488,2901.5,2899.8,7.00355884]
[1769018224877,3.44661198,2901.4,2900.0,0.07632396]
[1769018225472,0.68927488,2901.5,2900.0,0.07632396]
[1769018225473,7.58234842,2901.5,2900.0,3.84]
[1769018225892,4.13581165,2901.5,2900.0,3.91632396]
[1769018226094,10.33662954,2902.3,2900.2,7.00355884]
[1769018226394,6.72022815,2902.1,2899.9,3.44839477]
[1769018226582,6.72022815,2902.1,2900.0,7.00355884]
[1769018226784,10.90591731,2902.5,2900.4,10.37499896]
[1769018226986,6.72022815,2902.3,2900.4,6.92723488]
[1769018227184,6.72022815,2902.1,2900.0,3.44827084]
[1769018227396,6.72022815,2902.1,2899.9,10.37560465]
[1769018227695,6.72022815,2902.1,2899.9,6.92723488]
[1769018227897,6.72022815,2902.1,2899.9,10.37562268]
[1769018228097,7.39225097,2902.0,2899.9,6.92723488]
[1769018228287,7.39225097,2902.0,2900.0,7.00355884]
[1769018228599,0.67202282,2902.0,2900.3,3.44784648]
[1769018228907,10.33662954,2902.3,2900.4,6.92723488]
[1769018229697,10.33662954,2902.3,2900.4,10.37501122]
[1769018229995,6.89108636,2902.3,2900.4,10.37501122]
[1769018230196,13.78217272,2902.3,2900.4,6.92723488]
[1769018230403,6.72022815,2902.1,2899.8,7.00555884]
[1769018230571,1.58893095,2902.2,2900.5,6.92723488]
[1769018230771,5.03466727,2902.2,2900.7,7.00355884]
[1769018230972,6.89147264,2902.2,2900.4,7.00355884]
[1769018231296,6.89147264,2902.2,2900.4,10.45128637]
[1769018231498,10.33720896,2902.2,2900.4,10.45128637]
[1769018231702,6.89147264,2902.2,2900.5,3.44768041]
[1769018231887,6.89147264,2902.2,2900.4,6.92723488]
[1769018232089,1.70572799,2902.1,2900.4,6.92723488]
[1769018232600,1.70572799,2902.1,2900.6,3.44756193]
[1769018232781,1.70572799,2902.1,2900.5,7.00355884]
[1769018232976,6.89179874,2902.0,2900.5,7.00355884]
[1769018233707,5.15154557,2902.1,2900.7,6.92723488]
[1769018233999,6.89165397,2902.1,2900.6,6.92723488]
[1769018234701,3.44581758,2902.1,2900.6,6.92723488]
[1769018234902,6.89037414,2902.6,2900.6,7.00355884]
[1769018235095,17.05578936,2902.6,2900.6,7.00355884]
[1769018235403,6.72022815,2902.5,2900.6,6.92723488]
[1769018235606,6.72022815,2902.5,2900.1,6.89372416]
[1769018235607,6.61175345,2902.2,2900.1,6.89372416]
[1769018235903,6.61175345,2901.9,2899.8,0.002]
[1769018236070,6.61175345,2901.9,2899.8,3.45050646]
[1769018236275,0.66117534,2901.8,2900.2,6.89372416]
[1769018236475,6.61175345,2902.2,2900.3,6.97004812]
[1769018236674,2.10708855,2902.5,2900.6,10.34122988]
[1769018236875,0.001,2901.9,2900.6,6.89372416]
[1769018238903,0.001,2901.9,2900.6,10.34127999]
[1769018239903,0.001,2901.9,2900.4,3.84]
[1769018240103,6.61275345,2901.9,2900.4,3.84]
[1769018241210,6.89227376,2901.8,2900.4,3.84]
[1769018241518,16.95016409,2901.8,2900.4,3.84]
[1769018241696,6.61175345,2901.7,2900.4,3.84]
[1769018241893,6.61175345,2901.7,2899.9,3.84]
[1769018242218,10.33841064,2901.8,2900.3,10.34158473]
[1769018242219,1.69501641,2901.6,2900.3,10.34158473]
[1769018242423,6.89227376,2901.8,2900.4,6.89372416]
[1769018243520,0.001,2901.9,2900.4,6.89372416]
[1769018243824,6.61275345,2901.9,2899.8,0.002]
[1769018244334,6.61175345,2901.5,2899.8,0.002]
[1769018245610,6.61175345,2901.3,2899.8,0.002]
[1769018247322,10.33983594,2901.4,2899.8,6.89572416]
[1769018247323,6.89322396,2901.4,2899.8,6.89572416]
[1769018247521,6.89274882,2901.6,2900.0,6.89372416]
[1769018247693,1.35045023,2901.5,2900.0,6.89372416]
[1769018248790,1.35045023,2901.5,2900.2,6.89372416]
[1769018249025,3.44727374,2901.7,2900.3,6.97004812]
[1769018249196,6.61175345,2901.6,2899.8,3.842]
[1769018249517,6.89298638,2901.5,2899.9,10.34206604]
[1769018249692,1.35047398,2901.4,2899.9,10.34206604]
[1769018250391,1.35047398,2901.4,2899.9,6.89372416]
[1769018251503,6.89346154,2901.3,2899.9,6.89372416]
[1769018254225,16.95194576,2901.3,2899.8,3.842]
[1769018254525,6.61175345,2901.2,2899.8,3.842]
[1769018254704,1.3505215,2901.1,2899.8,0.002]
[1769018255623,1.3505215,2901.1,2899.8,6.89572416]
[1769018255934,3.44701123,2901.1,2899.8,6.97204812]
[1769018256638,6.61275345,2901.7,2899.8,6.97204812]
[1769018256639,6.89298638,2901.5,2899.8,6.97204812]
[1769018257135,10.33947957,2901.5,2899.9,6.89372416]
[1769018257535,6.61175345,2901.2,2899.8,0.002]
[1769018259605,6.89346154,2901.3,2899.8,6.89572416]
[1769018259806,3.44673077,2901.3,2899.8,6.89572416]
[1769018260007,6.89346154,2901.3,2899.8,6.89572416]
[1769018260536,6.89346154,2901.3,2899.9,6.89372416]
[1769018260836,0.79274095,2901.2,2900.0,0.002]
[1769018261038,0.001,2901.0,2900.0,6.89572416]
[1769018261241,3.44637441,2901.6,2900.3,6.89372416]
[1769018261644,0.001,2901.7,2900.4,6.97004812]
[1769018261943,0.001,2901.7,2900.7,6.97004812]
[1769018262114,0.001,2901.9,2900.9,6.89372416]
[1769018262314,0.001,2901.9,2901.0,6.89372416]
[1769018262620,6.61275345,2901.9,2900.2,0.57]
[1769018262840,0.001,2901.9,2900.7,6.89372416]
[1769018263342,0.001,2901.9,2900.8,6.97004812]
[1769018263568,0.001,2901.9,2900.5,3.44768143]
[1769018263864,0.001,2901.9,2900.4,10.41780557]
[1769018264248,0.001,2901.9,2900.4,10.34148161]
[1769018264647,0.001,2901.9,2900.4,13.78928191]
[1769018264847,0.001,2901.9,2900.5,6.97004812]
[1769018265756,0.001,2901.9,2900.5,10.41771307]
[1769018266579,0.001,2901.9,2900.5,6.89372416]
[1769018266878,6.5114191,2901.9,2900.2,7.01190569]
[1769018267770,6.89227376,2901.8,2900.2,7.01190569]
[1769018267958,13.40269286,2901.8,2900.2,7.01190569]
[1769018268266,1.68497416,2901.7,2900.2,10.45992153]
[1769018268670,1.68497416,2901.7,2900.2,7.01190569]
[1769018269267,1.68497416,2901.7,2900.2,10.45993314]
[1769018269766,5.13124199,2901.7,2900.4,9.88970599]
[1769018269933,3.44626783,2901.7,2900.4,6.44190569]
[1769018270139,0.001,2901.9,2901.0,6.44190569]
[1769018270354,0.001,2901.9,2900.7,0.07632396]
[1769018270653,0.001,2901.9,2900.3,6.89579307]
[1769018270971,0.001,2901.9,2900.4,6.51822965]
[1769018271172,0.001,2901.9,2900.7,6.44190569]
[1769018271572,0.001,2901.9,2901.0,6.51822965]
[1769018272081,0.001,2901.9,2901.0,9.96530073]
[1769018272253,0.001,2901.9,2901.1,6.44190569]
[1769018272686,0.001,2901.7,2901.1,6.44190569]
[1769018272985,0.001,2901.7,2900.8,3.44727753]
[1769018273484,0.001,2901.7,2900.8,3.44726633]
[1769018275194,0.001,2901.7,2900.8,6.8945912]
[1769018275891,0.001,2901.7,2900.8,3.44726633]
[1769018276270,0.001,2901.7,2900.8,6.8945912]
[1769018276466,0.001,2901.7,2900.9,6.44190569]
[1769018276670,0.001,2901.9,2900.9,6.51822965]
[1769018277293,0.001,2901.9,2900.9,6.44190569]
[1769018277464,0.001,2901.9,2900.8,3.44726633]
[1769018277886,0.001,2901.9,2900.7,3.44743192]
[1769018278085,0.001,2901.9,2900.8,7.28731714]
[1769018279092,0.001,2901.9,2900.8,10.73464201]
[1769018279288,0.001,2901.9,2900.8,16.77431931]
[1769018279488,0.001,2901.9,2901.0,6.0396773]
[1769018279697,0.001,2901.9,2901.0,6.6096773]
[1769018280167,0.001,2901.9,2901.2,5.96335334]
[1769018280988,5.82321235,2903.3,2901.4,6.0396773]
[1769018281186,9.26756877,2903.3,2901.8,0.07632396]
[1769018281403,5.82321235,2904.1,2902.5,0.07632396]
[1769018281707,0.001,2904.2,2902.6,6.0396773]
[1769018281905,0.001,2904.2,2902.2,5.96335334]
[1769018281906,5.82321235,2904.1,2902.2,5.96335334]
[1769018282207,12.71175013,2903.8,2902.3,1.73669271]
[1769018282374,1e-08,2903.7,2902.3,1.73669271]
[1769018282776,1e-08,2903.7,2902.2,11.1180902]
[1769018283091,1e-08,2903.7,2902.2,8.60039877]
[1769018283292,0.001,2903.8,2902.5,6.0396773]
[1769018283601,0.001,2903.8,2902.7,6.0396773]
[1769018283801,0.001,2903.8,2902.7,6.6096773]
[1769018284106,0.001,2903.8,2903.0,3.44471236]
[1769018284283,0.001,2903.8,2902.7,6.6096773]
[1769018284604,0.001,2903.8,2902.8,0.66096773]
[1769018284907,0.001,2904.2,2903.1,6.0396773]
[1769018285411,9.26455704,2905.0,2903.3,0.07632396]
[1769018285908,5.82321235,2905.4,2903.5,6.0396773]
[1769018286075,12.70700175,2905.4,2903.6,6.8880011]
[1769018286278,1.27080018,2905.3,2903.7,0.96838255]
[1769018287305,1.27080018,2905.3,2903.7,7.00805985]
[1769018288710,6.88420762,2905.2,2903.7,7.00805985]
[1769018289019,3.44210381,2905.2,2903.7,10.451928]
[1769018289402,4.71283917,2905.3,2903.8,5.96335334]
[1769018289709,6.88373372,2905.4,2903.9,6.62432107]
[1769018289882,12.70694607,2905.4,2903.9,0.66096773]
[1769018291206,10.32560058,2905.4,2903.5,5.96335334]
[1769018291412,5.82321235,2905.3,2903.6,3.44393754]
[1769018291620,5.82321235,2905.3,2903.5,6.0396773]
[1769018291821,6.88373372,2905.4,2903.7,6.0396773]
[1769018291822,3.44186686,2905.4,2903.7,6.0396773]
[1769018291982,6.88373372,2905.4,2903.7,6.0396773]
[1769018292183,6.88373372,2905.4,2903.8,3.44368929]
[1769018292383,0.68847337,2905.3,2903.9,4.39197567]
[1769018292810,0.68847337,2905.3,2903.9,9.40699235]
[1769018293011,0.68847337,2905.3,2903.9,6.96360772]
[1769018293212,3.44276292,2905.5,2904.1,6.0396773]
[1769018293805,0.001,2905.5,2904.1,6.0396773]
[1769018294129,3.4427663,2905.5,2904.1,6.0396773]
[1769018294334,3.4427663,2905.5,2904.0,3.84]
[1769018294335,6.8845326,2905.5,2904.0,3.84]
[1769018295418,0.001,2905.5,2904.0,7.28348668]
[1769018295744,0.001,2905.5,2904.1,1.08034431]
[1769018295745,6.95406929,2905.5,2904.1,1.08034431]
[1769018295920,6.95406929,2905.5,2904.0,3.84]
[1769018297121,6.95406929,2905.5,2903.5,3.84]
[1769018297332,6.26466699,2905.3,2903.5,3.842]
[1769018297503,10.32560058,2905.4,2903.5,7.28611144]
[1769018297504,6.26566699,2905.1,2903.5,7.28611144]
[1769018297831,6.26566699,2905.1,2903.6,3.84]
[1769018298037,6.26466699,2904.9,2903.6,3.84]
[1769018298349,0.6265667,2905.0,2903.7,5.97942521]
[1769018298515,0.001,2905.1,2903.7,5.97942521]
[1769018298721,6.26566699,2905.1,2903.5,0.002]
[1769018299423,6.26466699,2904.9,2903.5,0.002]
[1769018299804,1e-08,2904.9,2903.5,0.002]
[1769018300151,0.68846816,2904.8,2903.6,0.3842]
[1769018300554,0.68846816,2904.8,2903.5,0.002]
[1769018301441,6.88539262,2904.7,2903.5,0.002]
[1769018303490,3.44269631,2904.7,2903.5,0.002]
[1769018303841,6.88539262,2904.7,2903.5,5.90510125]
[1769018304762,3.44269631,2904.7,2903.5,5.90510125]
[1769018305073,0.41311645,2904.6,2903.6,0.97451013]
[1769018306095,3.85595694,2904.6,2903.6,0.97451013]
[1769018306458,0.41311645,2904.6,2903.6,6.87761138]
[1769018306810,3.44275054,2904.7,2903.6,6.87761138]
[1769018307156,3.44261685,2904.8,2903.6,6.87761138]
[1769018307661,0.001,2905.1,2903.7,5.97942521]
[1769018307909,0.001,2905.5,2903.7,6.96408784]
[1769018308075,0.001,2905.9,2905.0,5.90310125]
[1769018308278,6.87923502,2907.3,2905.5,5.90310125]
[1769018308520,3.43961751,2907.3,2905.7,5.90310125]
[1769018308671,3.43902606,2907.8,2906.1,5.90310125]
[1769018308874,0.9883427,2907.7,2906.2,6.57736773]
[1769018309072,3.43894724,2907.9,2906.2,6.50104377]
[1769018309306,13.14256147,2907.9,2906.2,6.50104377]
[1769018309506,6.26466699,2907.8,2906.2,0.59794252]
[1769018309812,6.26466699,2907.8,2905.8,5.90310125]
[1769018309987,10.31743302,2907.7,2905.8,5.90310125]
[1769018310190,6.26466699,2907.6,2905.3,6.47210125]
[1769018311306,6.26466699,2907.6,2905.3,4.01097248]
[1769018311520,13.75657736,2907.7,2905.4,5.90310125]
[1769018311521,6.26466699,2907.4,2905.4,5.90310125]
[1769018311694,0.6264667,2907.3,2905.6,5.90310125]
[1769018312091,16.58387445,2907.2,2905.5,0.97451013]
[1769018312312,6.26466699,2907.1,2905.2,5.90310125]
[1769018313697,40.0,2907.1,2905.2,5.90310125]
[1769018313911,6.26466699,2906.9,2904.7,5.90310125]
[1769018314204,6.26466699,2906.7,2904.8,5.90310125]
[1769018314509,6.26466699,2906.6,2904.9,0.59031013]
[1769018314709,6.26466699,2906.6,2904.5,5.90310125]
[1769018316118,16.58635974,2906.5,2904.5,5.90310125]
[1769018316786,16.58635974,2906.5,2904.6,5.90310125]
[1769018318123,16.58635974,2906.5,2904.6,7.65524372]
[1769018318433,2.00268708,2906.4,2904.7,6.66862562]
[1769018319754,8.26735407,2906.4,2904.7,6.66862562]
[1769018320533,6.88160202,2906.3,2904.7,6.66862562]
[1769018320735,10.32240303,2906.3,2904.7,6.66862562]
[1769018321138,6.26466699,2906.2,2904.7,0.76752437]
[1769018321448,8.26745409,2906.1,2904.7,0.002]
[1769018322611,6.88231244,2906.0,2904.7,0.002]
[1769018323032,10.32346866,2906.0,2904.7,0.002]
[1769018323608,6.87784257,2906.0,2904.7,0.002]
[1769018324630,6.87784257,2906.0,2904.7,5.90510125]
[1769018324836,1.51452967,2905.9,2904.7,5.90510125]
[1769018325347,6.87784257,2906.0,2904.7,5.90510125]
[1769018325726,3.43668635,2906.0,2904.7,5.90510125]
[1769018326746,6.88160202,2906.3,2904.7,5.90510125]
[1769018327316,6.88160202,2906.3,2904.8,6.02053256]
[1769018328842,3.44080101,2906.3,2905.0,6.02053256]
[1769018329153,1.0,2906.9,2905.0,6.02053256]
[1769018329154,3.43914434,2907.7,2905.8,6.02053256]
[1769018329446,3.43914434,2907.7,2906.2,6.02053256]
[1769018329622,6.87734258,2908.1,2906.4,6.02053256]
[1769018330147,10.31601387,2908.1,2906.4,6.02053256]
[1769018330473,10.31601387,2908.1,2905.5,1.83096113]
[1769018330474,6.2859921,2907.8,2905.8,6.02053256]
[1769018330678,6.2859921,2907.6,2905.8,6.62258582]
[1769018330854,6.2859921,2907.4,2905.8,6.62258582]
[1769018332743,6.87923502,2907.3,2905.8,6.62258582]
[1769018333684,10.31885253,2907.3,2905.8,6.62258582]
[1769018333880,1.66048446,2907.2,2905.8,6.62258582]
[1769018334481,7.94647656,2907.2,2905.8,6.02053256]
[1769018334683,7.94647656,2907.2,2904.7,0.002]